Cogmind - Beta 12 @@@ ROGUE MODE // 2023.05.21 @ 10:07:26 Player: MoonDog Result: Self-destructed Performance ------------- Evolutions (2) 1000 Regions Visited (5) 1000 Robots Destroyed (13) 65 Value Destroyed (265) 265 Prototype IDs (5) 100 Alien Tech Used (0) 0 Bonus (0) 0 TOTAL SCORE: 2430 Bonus ------- None Cogmind --------- Core Integrity 476/550 Matter 270/300 Energy 160/160 System Corruption 0% Temperature Cool (9) Movement Walking (120) Location -8/Materials Parts ------- > --- POWER (1) -------- Light Nuclear Core > --- PROPULSION (3) --- Improved Carbon-fiber Leg Improved Carbon-fiber Leg > --- UTILITY (5) ------ Weight Redist. System Hacking Suite > --- WEAPON (2) ------- Heavy Mace Axe > --- INVENTORY (5) ---- Trap Scanner Long-range Tractor Beam Minigun High-powered Shotgun Peak State ------------ > --- POWER ------------ Light Nuclear Core > --- PROPULSION ------- Improved Carbon-fiber Leg Improved Carbon-fiber Leg Improved Carbon-fiber Leg > --- UTILITY ---------- Weight Redist. System Reaction Control System Hacking Suite > --- WEAPON ----------- Heavy Mace Axe > --- INVENTORY -------- Trap Scanner Long-range Tractor Beam Minigun High-powered Shotgun [Rating: 30] Favorites ----------- Power Light Ion Engine Engine Light Ion Engine Power Core Light Nuclear Core Propulsion VTOL Module Treads Light Treads Leg Improved Carbon-fiber Leg Flight Unit VTOL Module Utility Hacking Suite Device Weight Redist. System Storage Small Storage Unit Hackware Hacking Suite Protection Propulsion Shielding Weapon Medium Laser Energy Gun Medium Laser Energy Cannon Light EM Pulse Cannon Impact Weapon Heavy Mace Slashing Weapon Axe Build | -11 -10 -10 -9 -9 -8 ------- Run | Jun Mat Min Mat Min Mat Slots Evolved 4 | . . . 2 . 2 Power . | . . . . . . Propulsion 1 | . . . . . 1 Utility 3 | . . . 2 . 1 Weapon . | . . . . . . Parts Attached 28 | 4 4 2 4 1 13 Power 3 | . . . 1 . 2 Engine 1 | . . . 1 . . Core 2 | . . . . . 2 Reactor . | . . . . . . Propulsion 9 | 2 2 2 . . 3 Treads 2 | 2 . . . . . Leg 3 | . . . . . 3 Wheel . | . . . . . . Hover . | . . . . . . Flight 4 | . 2 2 . . . Utility 8 | . 2 . 2 . 4 Device 5 | . . . 2 . 3 Storage 1 | . 1 . . . . Processor . | . . . . . . Hackware 1 | . 1 . . . . Protection 1 | . . . . . 1 Artifact . | . . . . . . Weapon 8 | 2 . . 1 1 4 Energy Gun 4 | 2 . . . 1 1 Energy Cannon 1 | . . . 1 . . Ballistic Gun . | . . . . . . Ballistic Cannon . | . . . . . . Launcher . | . . . . . . Special Weapon . | . . . . . . Impact Weapon 2 | . . . . . 2 Slashing Weapon 1 | . . . . . 1 Piercing Weapon . | . . . . . . Special Melee Weapon . | . . . . . . Unidentified Prototypes 1 | . . . . . 1 Parts Lost 8 | . . 4 . 2 2 Power 1 | . . . . 1 . Propulsion 4 | . . 2 . 1 1 Utility 1 | . . . . . 1 Weapon 2 | . . 2 . . . Highest Loss Streak 4 | . . 4 . 2 2 To Critical Strikes . | . . . . . . Average Slot Usage (%) 66 | . 64 71 78 88 52 Engine 2 | . . . 8 11 . Core 1 | . . . . . 4 Treads 4 | . 19 . . . . Flight 14 | . 8 26 22 22 8 Device 9 | . . . 17 22 13 Storage 7 | . 2 14 11 11 4 Hackware 9 | . 4 14 11 11 9 Energy Gun 10 | . 28 16 . 2 1 Energy Cannon 2 | . . . 8 9 . Impact Weapon 1 | . . . . . 4 Slashing Weapon 1 | . . . . . 4 Naked Turns . | . . . . . . Heaviest Build 13 | 3 8 8 13 13 12 Greatest Support 54 | 3 8 8 14 14 54 Greatest Overweight (x) 1 | . . . . 1 . Average Overweight (x) . | . . . . . . Largest Inventory Capacity 8 | 5 8 8 8 8 8 Average Capacity 6 | 5 5 8 8 8 6 Most Carried 8 | 2 5 4 4 4 8 Average Carried 3 | 1 2 3 3 4 5 Final Capacity 8 | 5 8 8 8 8 5 Final Carried 4 | 2 4 2 4 4 4 Class Distribution -------------------- 54% | Mutant 45% | Sprinter Dominant Class ---------------- Mutant | -10/Materials Sprinter | -10/Mines Sprinter | -9/Materials Sprinter | -9/Mines Mutant | -8/Materials Resources | -11 -10 -10 -9 -9 -8 ----------- Run | Jun Mat Min Mat Min Mat Matter Collected 430 | 240 12 48 . 17 113 Remotely 20 | . . . . . 20 Salvage Created 450 | 92 41 . 56 85 176 Parts 28 | 2 5 . 4 8 9 Haulers Intercepted 1 | . . . 1 . . Recyclers Shooed . | . . . . . . Parts Field Recycled . | . . . . . . Retrieved Matter . | . . . . . . Parts Self-Destructed . | . . . . . . Prevented . | . . . . . . Kills | -11 -10 -10 -9 -9 -8 ------- Run | Jun Mat Min Mat Min Mat Combat Hostiles Destroyed 5 | . . 1 . 1 3 Melee 2 | . . . . . 2 Guns 1 | . . 1 . . . Cannons 1 | . . . . 1 . Classes Destroyed 10 | 1 2 1 1 2 3 Worker 2 | . 1 . . . 1 Tunneler 1 | . . . . 1 . Hauler 1 | . . . 1 . . Recycler 2 | 1 . . . 1 . Operator 2 | . 1 . . . 1 Swarmer 1 | . . . . 1 . Grunt 1 | . . . . . 1 Sentry 1 | . . . . . 1 Demolisher 1 | . . 1 . . . Hunter 1 | . . . . . 1 Best Kill Streak 4 | 1 1 1 1 3 4 Combat Bots Only 2 | . . 1 . 1 2 Max Kills in Single Turn 2 | 1 1 1 1 2 1 Gunslinging . | . . . . . . Exploded . | . . . . . . Melee 1 | . . . . . 1 Uniques/NPCs Destroyed . | . . . . . . Combat | -11 -10 -10 -9 -9 -8 -------- Run | Jun Mat Min Mat Min Mat Damage Taken 1039 | . . 401 98 173 367 Core 305 | . . 169 10 52 74 Absorbed by Shields . | . . . . . . Core Remaining (%) 72 | 100 . 32 . 84 . Volleys Fired 33 | 8 7 4 3 9 2 Largest 2 | 2 2 2 1 1 1 Hottest 90 | 90 90 90 56 56 40 Shots Fired 51 | 16 14 7 3 9 2 Gun 43 | 16 14 7 . 4 2 Cannon 8 | . . . 3 5 . Launcher . | . . . . . . Special . | . . . . . . Kinetic . | . . . . . . Thermal 37 | 16 14 7 . . . Explosive . | . . . . . . Electromagnetic 14 | . . . 3 9 2 Robot Hit Streak 6 | 6 3 6 1 2 4 Robot Miss Streak 4 | 3 2 1 2 4 . Penetration Max . | . . . . . . Secondary Targets 1 | . . 1 . . . Max Gunslinging Chain 1 | . . 1 . . . Shots Hit Robots 42 | 11 8 5 1 4 13 Core Hits 17 | 2 4 2 1 7 1 Critical Kills . | . . . . . . Critical Parts Destroyed . | . . . . . . Critical Strikes 1 | . . . . 1 . Corrupt 1 | . . . . 1 . Melee Attacks 13 | . . . . . 13 Impact 11 | . . . . . 11 Slashing 2 | . . . . . 2 Piercing . | . . . . . . Sneak Attacks 1 | . . . . . 1 Combat Hostiles . | . . . . . . Follow-up Attacks 1 | . . . . . 1 Damage Inflicted 1053 | 127 119 59 25 168 555 Guns 372 | 127 119 59 . 21 46 Cannons 63 | . . . 25 38 . Explosions 109 | . . . . 109 . Melee 509 | . . . . . 509 Ramming . | . . . . . . Kinetic . | . . . . . . Thermal 414 | 127 119 59 . 109 . Explosive . | . . . . . . Electromagnetic 130 | . . . 25 59 46 Impact 471 | . . . . . 471 Slashing 38 | . . . . . 38 Piercing . | . . . . . . Highest Corruption . | . . . . . . Average Corruption . | . . . . . . Corruption Purged . | . . . . . . Corruption Blocked . | . . . . . . Overload Shots . | . . . . . . Overflow Damage 129 | . . . . . 129 Projectiles . | . . . . . . Explosions . | . . . . . . Melee 129 | . . . . . 129 Knockbacks 3 | . . . . . 3 Impact 3 | . . . . . 3 Kinetic . | . . . . . . Secondary . | . . . . . . Self-Inflicted Damage . | . . . . . . Shots . | . . . . . . Rammed . | . . . . . . Targets Rammed . | . . . . . . Kicked . | . . . . . . Crushed . | . . . . . . Highest Temperature 90 | 90 85 40 30 63 . Average Temperature 30 | 38 34 21 14 29 . Received Heat Transfer 237 | . . 33 36 24 144 Siege Activations . | . . . . . . Robots Corrupted . | . . . . . . Combat Hostiles . | . . . . . . Parts Fried 5 | . . . . . 5 Impact Corruptions 5 | . . . . . 5 Robots Melted . | . . . . . . Combat Hostiles . | . . . . . . Parts Melted 2 | . 2 . . . . Heat Transferred 1106 | 323 322 161 . 300 . Parts Sabotaged . | . . . . . . Parts Stolen . | . . . . . . Parts Stripped . | . . . . . . Power Chain Reactions 1 | . . . . 1 . Missiles Intercepted . | . . . . . . Alert | -11 -10 -10 -9 -9 -8 ------- Run | Jun Mat Min Mat Min Mat Peak Influence 285 | 5 65 56 120 77 285 Initial 46 | . 3 21 9 46 22 Average 57 | 1 9 32 33 53 131 Maximum Alert Level 1 | . . . . . 1 Low Security (%) 91 | 100 100 100 100 100 72 Level 1 8 | . . . . . 27 Level 2 . | . . . . . . Level 3 . | . . . . . . Level 4 . | . . . . . . Level 5 . | . . . . . . High Security . | . . . . . . Max Security . | . . . . . . Squads Dispatched 1 | . 1 . . . . Investigation 1 | . 1 . . . . Extermination . | . . . . . . Reinforcement . | . . . . . . Assault . | . . . . . . Garrison . | . . . . . . Intercept . | . . . . . . Searches Triggered . | . . . . . . Construction Impeded . | . . . . . . Haulers Reinforced . | . . . . . . Active Scanning Responses . | . . . . . . Cargo Convoy Interrupts . | . . . . . . Stealth | -11 -10 -10 -9 -9 -8 --------- Run | Jun Mat Min Mat Min Mat Distress Signals 3 | . 1 . 1 . 1 Communications Jammed . | . . . . . . Distress Signals . | . . . . . . Times Spotted 51 | . 10 7 13 6 15 Peak Tracking Total 15 | . 7 3 15 6 8 Tactical Retreats 3 | . 1 . . . 2 Traps | -11 -10 -10 -9 -9 -8 ------- Run | Jun Mat Min Mat Min Mat Traps Triggered 1 | . 1 . . . . Indirectly . | . . . . . . Trap Hack Attempts . | . . . . . . Triggered . | . . . . . . Disarmed . | . . . . . . Reprogrammed . | . . . . . . Reused . | . . . . . . Traps Extracted . | . . . . . . Installed . | . . . . . . Triggered . | . . . . . . Machines | -11 -10 -10 -9 -9 -8 ---------- Run | Jun Mat Min Mat Min Mat Machines Disabled . | . . . . . . Max in Single Turn . | . . . . . . Machines Repaired . | . . . . . . Machines Sabotaged . | . . . . . . Overloaded Fab Kills . | . . . . . . Hacking | -11 -10 -10 -9 -9 -8 --------- Run | Jun Mat Min Mat Min Mat Machines Accessed 13 | . 6 . 1 . 6 Terminals 13 | . 6 . 1 . 6 Fabricators . | . . . . . . Repair Stations . | . . . . . . Recycling Units . | . . . . . . Scanalyzers . | . . . . . . Garrison Access . | . . . . . . Total Hacks 39 | . 21 . 4 . 14 Successful 23 | . 10 . 2 . 11 Failed 16 | . 11 . 2 . 3 Catastrophic 4 | . 3 . . . 1 Database Lockouts . | . . . . . . Manual 24 | . 16 . 2 . 6 Terminals 39 | . 21 . 4 . 14 Fabricators . | . . . . . . Repair Stations . | . . . . . . Recycling Units . | . . . . . . Scanalyzers . | . . . . . . Garrison Access . | . . . . . . Terminal Hacks 9 | . 3 . 1 . 5 Record 1 | . . . . . 1 Prototype ID Bank 2 | . 1 . . . 1 Branch Access Points 1 | . 1 . . . . Terminal Index 1 | . . . . . 1 Unreport Threat 2 | . 1 . 1 . . Zone Layout 2 | . . . . . 2 Fabricator Hacks . | . . . . . . Repair Station Hacks . | . . . . . . Recycling Unit Hacks . | . . . . . . Scanalyzer . | . . . . . . Garrison Access Hacks . | . . . . . . Unauthorized Hacks 14 | . 7 . 1 . 6 Terminals 14 | . 7 . 1 . 6 Track 1 | . 1 . . . . Assimilate 1 | . 1 . . . . Botnet 10 | . 5 . 1 . 4 Operators 2 | . . . . . 2 Fabricators . | . . . . . . Repair Stations . | . . . . . . Recycling Units . | . . . . . . Scanalyzers . | . . . . . . Garrison Access . | . . . . . . Data Cores Recovered 2 | . 1 . . . 1 Used 1 | . 1 . . . . Hacking Detections 13 | . 6 . 1 . 6 Full Trace Events 2 | . . . . . 2 Feedback Events . | . . . . . . Feedback Blocked . | . . . . . . Robot Schematics Acquired . | . . . . . . Robots Built . | . . . . . . Authchips . | . . . . . . Time . | . . . . . . Total Robot Build Rating . | . . . . . . Part Schematics Acquired . | . . . . . . Parts Built . | . . . . . . Authchips . | . . . . . . Time . | . . . . . . Total Part Build Rating . | . . . . . . Parts Repaired . | . . . . . . Time . | . . . . . . Parts Recycled . | . . . . . . Recycled Matter . | . . . . . . Retrieved Matter . | . . . . . . Retrieved Components . | . . . . . . Parts Scanalyzed . | . . . . . . Part Schematics Acquired . | . . . . . . Parts Damaged . | . . . . . . Bothacking | -11 -10 -10 -9 -9 -8 ------------ Run | Jun Mat Min Mat Min Mat Used RIF Installer . | . . . . . . Robots Hacked . | . . . . . . Non-combat . | . . . . . . Combat . | . . . . . . Robot Hacks Applied . | . . . . . . Relay Couplers Released . | . . . . . . Fabnet Peak Effective % . | . . . . . . Robots Rewired . | . . . . . . Allies Hacked . | . . . . . . Hacks Repelled . | . . . . . . Allies | -11 -10 -10 -9 -9 -8 -------- Run | Jun Mat Min Mat Min Mat Total Allies 1 | . 1 . . . . Largest Group 1 | . 1 . . . . Highest-Rated Group 10 | . 10 . . . . Highest-Rated Ally 10 | . 10 . . . . Total Orders . | . . . . . . Ally Attacks . | . . . . . . Total Damage . | . . . . . . Kills . | . . . . . . Allies Corrupted . | . . . . . . Allies Melted . | . . . . . . Intel | -11 -10 -10 -9 -9 -8 ------- Run | Jun Mat Min Mat Min Mat Robot Analysis Total . | . . . . . . Derelict Logs Recovered 1 | . . 1 . . . Drone Launches . | . . . . . . Drone Recoveries . | . . . . . . Exploration | -11 -10 -10 -9 -9 -8 ------------- Run | Jun Mat Min Mat Min Mat Turns Passed 896 | 69 203 166 72 117 269 Spaces Moved 1687 | 73 360 418 159 178 499 Core 276 | 73 203 . . . . Treads . | . . . . . . Legs 8 | . . . . . 8 Wheels . | . . . . . . Hover . | . . . . . . Flight 1403 | . 157 418 159 178 491 Fastest Speed 32 | 50 32 32 32 32 35 Average Speed 36 | 50 42 32 32 32 36 Slowest Speed 120 | 50 50 32 32 115 120 Overloaded Moves . | . . . . . . Propulsion Burnouts . | . . . . . . Robots Hopped 20 | . 3 8 2 2 5 Cave-ins Triggered . | . . . . . . Exploration Rate (%) 36 | 4 72 63 18 18 42 Regions Visited 5 Branch Regions 2 Pre-discovered Areas . | . . . . . . Known Exits Taken 1 | . 1 . . . . Unknown Exits Taken 4 | 1 . 1 1 1 . Scrap Searched 1 | . . . . 1 . Spaces Dug 1 | . . . . . 1 Terrain Destroyed 2 | . . . . 1 1 Melee 1 | . . . . . 1 Projectile . | . . . . . . AOE 1 | . . . . 1 . Terrain Rammed . | . . . . . . Walls Destroyed . | . . . . . . Machines Disabled . | . . . . . . Actions | -11 -10 -10 -9 -9 -8 --------- Run | Jun Mat Min Mat Min Mat Total 1875 | 86 393 434 173 225 564 Wait 108 | . 21 19 6 40 22 Move 1645 | 72 354 402 155 173 489 Hop 17 | . 2 7 1 2 5 Pick Up 12 | 2 2 . 4 . 4 Fast Attach 18 | 4 3 . 2 . 9 Attach 9 | . 1 2 2 . 4 Detach 10 | . 2 . . . 8 Swap 1 | . . . . 1 . Drop 11 | . 1 . . . 10 Fire 33 | 8 7 4 3 9 2 Melee 11 | . . . . . 11 Ram . | . . . . . . Kick . | . . . . . . Crush . | . . . . . . Escape Stasis . | . . . . . . Rewire . | . . . . . . Trap . | . . . . . . Miscellaneous . | . . . . . . Route ------- -11/Junkyard -10/Materials (discovered 2 exits: *Mat / *Min) -10/Mines (discovered 2 exits: *Mat x2) -9/Materials -9/Mines -8/Materials (discovered 2 exits: [*Fac] / [*Sto]) History --------- Turn | Location | Event 6 | -11/Junkyard | Discovered new exit (range 15) 70 | -11/Junkyard | Entered Materials 195 | -10/Materials | Discovered new exit (range 8) 235 | -10/Materials | Identified exit to Mines 273 | -10/Materials | Entered Mines 287 | -10/Mines | Assembled infested the area 292 | -10/Mines | Assisted by a Guerilla fighting off Assembled 292 | -10/Mines | Learned Materials stockpile data 365 | -10/Mines | Core integrity fell below 50% 401 | -10/Mines | Lost 4 parts (2n2w) 401 | -10/Mines | Discovered new exit (range 11) 408 | -10/Mines | Discovered new exit (range 10) 439 | -10/Mines | Entered Materials 439 | -9/Materials | Evolved 2 slots: Utility x2 485 | -9/Materials | Discovered new exit (range 16) 511 | -9/Materials | Entered Mines 516 | -9/Mines | Discovered new exit (range 8) 517 | -9/Mines | Build established: Sprinter 628 | -9/Mines | Entered Materials 628 | -8/Materials | Evolved 2 slots: Propulsion x1, Utility x1 631 | -8/Materials | Discovered new exit (range 16) 722 | -8/Materials | Discovered new exit (range 8) 897 | -8/Materials | Self-destructed Last Messages --------------- 00858_ Hacking Suite fried. 00858_ Hover Unit fried. 00858_ O-16 Technician destroyed. 00858_ K-01 Serf collects debris. 00860_ Acquired data core, extracted dynamic key. 00862_ K-01 Serf collects debris. 00864_ Dropped VTOL Module. 00864_ Acquired Imp. Carbon-fiber Leg. 00866_ K-01 Serf collects debris. 00875_ Acquired Imp. Carbon-fiber Leg. 00879_ K-01 Serf collects debris. 00880_ Acquired Imp. Carbon-fiber Leg. 00882_ L-31 Rogue knocked back. 00883_ K-01 Serf collects debris. 00893_ Destroyed Imp. Aluminum Leg. 00893_ L-31 Rogue system corrupted by crushing effect. 00893_ L-31 Rogue knocked back. 00894_ Penetrated by Slug. 00897_ Reaction Control System destroyed. 00897_ Imp. Carbon-fiber Leg destroyed. Map ----- +----------------------------------------------------+ | ?????????????????????????????????????????????????? | | ??????????????????????????????????#####??????????? | | ???????????????????????############ #??????????? | | ????????????????????? #??????????? | | ????????????????????? #??????????? | | ????????????????????????########### #??????????? | | ??????????????????????????????????# ############ | | ??????????????????????????????????# | | ??????????????????????????????????# ############ | | ??????????????????????????????????# #??????????? | | ??????????????????????????????????# #??????????? | | ??????????????????????????????????# #??????????? | | ??????????????????????????????????+ #??????????? | | ??????????????????????????????????# #??????????? | | ??????????????????????????????????# #?????????## | | ??????????????????????????????????# #?????????# | | ????????? ???????????????????????# #?????????# | | ???????? ??????????????????????# #?????????# | | ???????# ######????????????????# #?????????# | | ???????# ???????????????? +?????????# | | ??????## ????????????????# #?????????# | | ?????? ????????????????# #?????????# | | ????? ????????????????? #?????????# | | ????? #??????????????# ####?????## | | ????? ###########????# ??????? | | ???? @]]#????# < ??????? | | ???? l]#????# ??????? | | ??? = #????# ###+??????? | | ??? = #????## ## ??????? | | ??? % Ygg!!#?????# ## ??????? | | ??? h !!#?????# ## ??????? | | ?????######### ##### ######?????# ## ??????? | | ????????????## k #???# #??????????# ## ??????? | | ???????????? # #???# #??????????# + "??????? | | ???????????? # #???# #??????????# ## "??????? | | ???????????? # #####+########???## ### "??????? | | ???????????? # # #????# #?# ??????? | | ???????????? # # """ "" #????# #?# ??????? | | ???????????? + + == """ T" #????# #?# ??????? | | ???????????? # # == """ "" #????# ######??????? | | ???????????? # # #????# ## ??????# | | ????????????## ############"###### ## """?????? | | ?????????????# # #???# + ## """?????? | | ?????????????# # """ #???# """ # ## """?????? | | ?????????????# # """ #???# """ # ## """?????? | | ?????????????# + """ #???# """ # ## """?????? | | ?????????????# # #???# # ## ??????# | | ?????????????# # #???# # ## ??????# | | ????????????## ########?########## ############# | | ???????????? ###??????# ### ### # | +----------------------------------------------------+ Best States ------------- Heat Dissipation 31 Coolant Potential 50 Energy Generation 14 Energy Capacity 160 Matter Stores 300 Matter Capacity 300 Sight Range 16 Terrain Scan Density 10 Additional Mass Support 6 Propulsion Shielding 33 Evasion (%) 63 Offensive Hacking 10 Item Schematics ----------------- None Robot Schematics ------------------ None Fabricated ------------ Nothing Alien Tech Used ----------------- None Achievements -------------- None Challenges ------------ None Game ------ Seed HackingGodAutocannon Manual? 0 Play Time 01:12:52 Cumulative 133.1 hours Start 2023.05.19 @ 22:46:36 End 2023.05.21 @ 10:07:26 Sessions 3 Manual Loads 0 Difficulty Rogue Special Mode None Game No. 123 Rogue 123 Adventurer 0 Explorer 0 Win Type - Total 1 Types 1/0/0/0/0/0/0/0/0 Lore% 40 Gallery% 57 Achievement% 47 Wizard Run 0 Options --------- ASCII 0 Keyboard 0 Movement Numpad Keybinds 0 Fullscreen 1 Font 18/SmallcapsGlow Map View 76x50 Tactical HUD 1 Map Filters NONE Filters NONE Steam 1 RUN: 0d177072-200a-49d1-88de-9d63179e6f3d